{"text_format":"1","workbook":"xlsx","n_sheets":3,"sheets":["Sheet1","Sheet2","Sheet3"],"not_rendered":{"charts":0,"images":0,"macros":1,"external_links":0,"defined_names":0,"comments":0,"pivot_tables":0},"unopened":[],"bounds":{"document_bytes":16777216,"sheet_cells":100000,"rows_first":2000,"rows_last":500,"rows_between":2000,"halvings":0,"cell_chars":16384,"cell_head_chars":4096},"cells_cut":0,"cells_raw":0,"read":"whole","date_system":"1900"}

{"sheet":"Sheet1","index":0,"n_rows":408,"n_cols":3,"rows_kept":408,"cut":false,"hidden":false,"merged":[]}
[]
[]
["Raw Data","Required Result"]
[]
["TICKET ROUTING","FINAL DESTINATION","Result by Rajan."]
["RUH-DMM","DMM",{"$f":"GetFinal(A6)","v":"DMM"}]
["DMM-DOH-DEL","DEL",{"$f":"GetFinal(A7)","v":"DEL"}]
["DMM-TRV","TRV",{"$f":"GetFinal(A8)","v":"TRV"}]
["JED-DMM","DMM","DMM"]
["KRT-RUH-KRT","RUH","RUH"]
["DMM-BAH-MNL-BAH-DMM","MNL","MNL"]
["DEL-GOP-DEL","GOP","GOP"]
["DEL-GOP-DEL","COK","GOP"]
["DMM-BAH-COK-BAH-DMM","GOI","COK"]
["DMS-BAH-BOM-GOI","DAM","GOI"]
["DMS-BAH-DAM","HYD","DAM"]
["RUH-BOM-HYD-BOM-RUH",null,"HYD"]
["DMS-BAH-BOM-BAH-DMS",null,"BOM"]
["MEL-AUH-BAH",null,"BAH"]
["BAH-AUH-MEL-AUH-BAH",null,"MEL"]
["DEL-GOP-DEL",null,"GOP"]
["DMM-MCT-BLR",null,"BLR"]
["RUH-BOM-DEL",null,"DEL"]
["DMM-TRV",null,"TRV"]
["DMM-MCT-BLR-MCT-DMM",null,"BLR"]
["DMM-BOM-DMM",null,"BOM"]
["RUH-CCJ",null,"CCJ"]
["DMS-BAH-BOM-IXE",null,"IXE"]
["RUH-JED",null,"JED"]
["JED-BEY-JED",null,"BEY"]
["RUH-JED",null,"JED"]
["RUH-CCJ",null,"CCJ"]
["DEL-PAT",null,"PAT"]
["RUH-CCJ",null,"CCJ"]
["RUH-CCJ-RUH",null,"CCJ"]
["RUH-BOM-RUH",null,"BOM"]
["DMM-TRV-DMM",null,"TRV"]
["HBE-RUH",null,"RUH"]
["RUH-CCJ",null,"CCJ"]
["DMM",null,{"$error":"#VALUE!"}]
["DMM-DOH-COK-DOH-DMM",null,"COK"]
["JED-CAI-JED",null,"CAI"]
["JED-CAI-JED",null,"CAI"]
["DMM-SHJ-DMM",null,"SHJ"]
["DMM-JED-DMM",null,"JED"]
["JED-LHR",null,"LHR"]
["DEL-GOP-DEL",null,"GOP"]
["DEL-GOP-DEL",null,"GOP"]
["DMM-JED-DMM",null,"JED"]
["DMM-LHE-DMM",null,"LHE"]
["DMM-KHI-MUX-KHI-DMM",null,"MUX"]
["BAH-JED-MED-RUH-BAH",null,"MED"]
["BAH-JED-MED-RUH-BAH",null,"MED"]
["RUH-CCJ-RUH",null,"CCJ"]
["DMM",null,{"$error":"#VALUE!"}]
["DMM",null,{"$error":"#VALUE!"}]
["RUH-COK",null,"COK"]
["DMM-BAH-MAA-BAH-DMM",null,"MAA"]
["DMM",null,{"$error":"#VALUE!"}]
["DMM",null,{"$error":"#VALUE!"}]
["DMM-CCJ",null,"CCJ"]
["JED-DMM",null,"DMM"]
["CAI-DMM-CAI",null,"DMM"]
["BLR-HYD-DMM",null,"DMM"]
["DMM-BAH-BOM-BAH-DMM",null,"BOM"]
["EAM-RUH-EAM",null,"RUH"]
["DMM-CAI",null,"CAI"]
["CAI-DMM",null,"DMM"]
["DMM-BAH-COK-BAH-DMM",null,"COK"]
["DMM-BAH-COK-BAH-DMM",null,"COK"]
["DMM-BAH-COK-BAH-DMM",null,"COK"]
["DMM-CAI",null,{"$f":"GetFinal(A72)","v":"CAI"}]
["DMM-DOH-FCO-DOH-DMM",null,"FCO"]
["CAG-FCO-DOH-DMM-DOH-FCO",null,"FCO"]
["BAH-IST-HTY-IST-BAH",null,"HTY"]
["DMM-CAI",null,"CAI"]
["DMM-JED",null,"JED"]
["GIZ-RUH",null,"RUH"]
["IAH-AMS-BAH-AMS-IAH",null,"BAH"]
["DMM-AUH-CGK-AUH-DMM",null,"CGK"]
["AEX-ATL-AMS-BAH-AMS-ATL-AEX",null,"AMS"]
["JED-RUH-DXB",null,"DXB"]
["MLU-ATL-AMS-BAH-AMS-ATL-MLU",null,"AMS"]
["KWI-BAH",null,"BAH"]
["RUH-CCJ-RUH",null,"CCJ"]
["CCJ-DOH-DMM",null,"DMM"]
["BLR-MCT-DMM",null,"DMM"]
["MNL-BAH-DMM",null,"DMM"]
["BAH-FRA-LIN-FRA-BAH-BAH",null,"LIN"]
["RUH-KWI-COK",null,"COK"]
["MXP-DXB-BAH",null,"BAH"]
["JED-RUH-DXB",null,"DXB"]
["RUH-BAH-KTM",null,"KTM"]
["RUH-MAA",null,"MAA"]
["RUH-DEL-RUH",null,"DEL"]
["BEY-JED",null,"JED"]
["RUH-JED-RUH",null,"JED"]
["RUH-JED",null,"JED"]
["RUH-CCJ-RUH",null,"CCJ"]
["BOM-MCT-BAH-DMS",null,"DMS"]
["DMS-BAH-AUH-CGK-AUH-DMM",null,"DMM"]
["MNL-RUH-MNL",null,"RUH"]
["DEL-RUH",null,"RUH"]
["BAH-LHR-EDI-CDG-LHR-BAH",null,"EDI"]
["BAH-LHR-EDI-CDG-LHR-BAH",null,"EDI"]
["BAH-LHR-EDI-CDG-LHR-BAH",null,"EDI"]
["BAH-LHR-EDI-CDG-LHR-BAH",null,"EDI"]
["BAH-LHR-EDI-CDG-LHR-BAH",null,"EDI"]
["DMS-BAH-DAM-BAH-DMM",null,"DMM"]
["RUH-BOM-MAA",null,"MAA"]
["RUH-CCJ",null,"CCJ"]
["RUH-CCJ-RUH",null,"CCJ"]
["RUH-BAH-KTM",null,"KTM"]
["RUH-CCJ-RUH",null,"CCJ"]
["RUH-DOH-KTM-DOH-RUH",null,"KTM"]
["RUH-CCJ",null,"CCJ"]
["DMM-CAI-DMM",null,"CAI"]
["RUH-BOM-IXE",null,"IXE"]
["RUH-BOM-IXE",null,"IXE"]
["RUH-CCJ-RUH",null,"CCJ"]
["RUH-CCJ-RUH",null,"CCJ"]
["DMM-AUH-PEK-AUH-DMM",null,"PEK"]
["DMM-AUH-PEK-AUH-DMM",null,"PEK"]
["DMM-COK-DMM",null,"COK"]
["RUH-COK",null,"COK"]
["RUH",null,{"$error":"#VALUE!"}]
["BIO-CDG-AMS-BAH-DMS",null,"DMS"]
["RUH-CCJ-RUH",null,"CCJ"]
["RUH-HYD-RUH",null,"HYD"]
["RUH-BOM-HYD-BOM-RUH",null,"HYD"]
["RUH-CCJ-RUH",null,"CCJ"]
["RUH-DXB-TRV",null,"TRV"]
["DMM-CAI-DMM",null,"CAI"]
["DMM-CAI-DMM",null,"CAI"]
["RUH-MCT-KTM",null,"KTM"]
["BAH-DXB-BAH",null,{"$f":"GetFinal(A136)","v":"DXB"}]
["DMM-CAI-DMM",null,"CAI"]
["DMM-DOH-MHD-DOH-DMM",null,"MHD"]
["RUH-BOM",null,"BOM"]
["BOM-DXB-BAH-DMM",null,"DMM"]
["DMM-JED",null,"JED"]
["DMM-DXB-MNL-DXB-BAH-DMM",null,"MNL"]
["DMM-JED",null,"JED"]
["MED-DMM",null,"DMM"]
["JED-CAI-DMM",null,"DMM"]
["DMM-TRV",null,"TRV"]
["DMS-BAH-BOM",null,"BOM"]
["DMM-TRV-DMM",null,"TRV"]
["DOH-BAH-RUH-BAH-DOH",null,"RUH"]
["ISB-AUH-DMM",null,"DMM"]
["RUH-CMB-RUH",null,"CMB"]
["BAH-IST",null,"IST"]
["BAH-IST-ADB",null,"ADB"]
["IAH-LHR-BAH",null,"BAH"]
["JED-AUH-LHE-AUH-JED",null,"LHE"]
["RUH-BOM",null,"BOM"]
["RUH-MCT-RUH",null,"MCT"]
["RUH-MCT-RUH",null,"MCT"]
["BAH-AUH-MNL-AUH-BAH",null,"MNL"]
["DMM-MCT-DMM",null,"MCT"]
["JED-CAI-JED",null,"CAI"]
["RUH-MCT-RUH",null,"MCT"]
["JED-CAI-JED",null,"CAI"]
["JED-CAI-JED",null,"CAI"]
["DMM-BAH-COK-BAH-DMM",null,"COK"]
["DMM-DOH-KHI-DOH-DMM",null,"KHI"]
["BAH-IST-ZAG",null,"ZAG"]
["DMM-BAH-MNL-BAH-DMM",null,"MNL"]
["JED-RUH",null,"RUH"]
["RUH-GIZ-RUH",null,"GIZ"]
["JED-DXB-JED",null,"DXB"]
["RUH-AHB",null,"AHB"]
["RUH-AHB",null,"AHB"]
["RUH-MAA",null,"MAA"]
["DMM-CAI-DMM",null,"CAI"]
["RUH-AUH-KTM",null,"KTM"]
["RUH",null,{"$error":"#VALUE!"}]
["DMM-CAI-DMM",null,"CAI"]
["DMM-CAI",null,"CAI"]
["DMM-CAI",null,"CAI"]
["DMM-CAI",null,"CAI"]
["DMM-CAI",null,"CAI"]
["RUH-CCJ-RUH",null,"CCJ"]
["RUH-DEL",null,"DEL"]
["RUH-CCJ",null,"CCJ"]
["RUH-CCJ",null,"CCJ"]
["CAI-DMM-CAI",null,"DMM"]
["RUH-DOH-DEL-DOH-RUH",null,"DEL"]
["DEL-PAT",null,"PAT"]
["RUH-BAH-KTM",null,"KTM"]
["DMM-CAI-DMM",null,"CAI"]
["BAH-DXB-BAH",null,"DXB"]
["DMM-ALY-CAI-DMM",null,"CAI"]
["RUH-MCT-CGP-MCT-RUH",null,"CGP"]
["DMM-CAI-DMM",null,"CAI"]
["RUH-COK",null,"COK"]
[2100247560,null,"560"]
["RUH-BOM-HYD-BOM-RUH",null,"HYD"]
["RUH-CCJ",null,"CCJ"]
["DMM-BAH-DXB-LOS-DXB-BAH-DMM",null,{"$f":"GetFinal(A200)","v":"DXB"}]
["ISB-DXB-BAH-DMM",null,"DMM"]
["DMM-TRV",null,"TRV"]
["DMM-FRA-FCO-FRA-DMM",null,"FCO"]
["RUH-DEL",null,"DEL"]
["DMS-BAH-DXB-BAH-DMS",null,"DXB"]
["JED-DEL-JED",null,"DEL"]
["DMM-RUH-DMM",null,"RUH"]
["BLR-JED-BLR",null,"JED"]
["RUH-GIZ-RUH",null,"GIZ"]
["RUH-GIZ-RUH",null,"GIZ"]
["RUH-GIZ-RUH",null,"GIZ"]
["RUH-GIZ-RUH",null,"GIZ"]
["DEL-DMM-DEL",null,"DMM"]
["DMM-TRV-DMM",null,"TRV"]
["DMS-BAH-KBL",null,"KBL"]
["DMS-BAH-KBL",null,"KBL"]
["DMS-BAH-CCJ",null,"CCJ"]
["LHE-DMM",null,"DMM"]
["DMM-CCJ-DMM",null,"CCJ"]
["CJB-SHJ-DMM",null,"DMM"]
["DMM-SHJ-COK",null,"COK"]
["DMM-RUH-CMN",null,"CMN"]
["DMS-BAH-CMB",null,"CMB"]
["DMM-TRV-DMM",null,"TRV"]
["DMM-CCJ",null,"CCJ"]
["DMM-RUH",null,"RUH"]
["DMM-RUH",null,"RUH"]
["DMM-AMM",null,"AMM"]
["MAA-BOM-DMM",null,"DMM"]
["MAA-BOM-DMM",null,"DMM"]
["MAA-BOM-DMM",null,"DMM"]
["DMM-DOH-KTM-DOH-DMM",null,"KTM"]
["RUH-CCJ-RUH",null,"CCJ"]
["RUH-BOM-RUH",null,"BOM"]
["RUH-TRV-RUH",null,"TRV"]
["DMS-BAH-AUH-BLR-AUH-BAH-DMS",null,"AUH"]
["CCJ-RUH",null,"RUH"]
["CCJ-RUH",null,"RUH"]
["RUH-TRV-RUH",null,"TRV"]
["RUH-CCJ-RUH",null,"CCJ"]
["RUH-CCJ",null,"CCJ"]
["JED-SHJ-CJB",null,"CJB"]
["RUH-SHJ-JAI",null,"JAI"]
["RUH-TRV-RUH",null,"TRV"]
["DMM-DXB-KTM",null,"KTM"]
["CAI-RUH",null,"RUH"]
["CAI-RUH",null,"RUH"]
["RUH-DXB-COK",null,"COK"]
["RUH-TRV",null,"TRV"]
["RUH-DXB-MAA-DXB-RUH",null,"MAA"]
[2100247559,null,"559"]
["RUH-DEL",null,"DEL"]
[2100247711,null,"711"]
["RUH-TRV-RUH",null,"TRV"]
["RUH-TRV-RUH",null,"TRV"]
["DMM-CAI-DMM",null,"CAI"]
["RUH-DXB-CCJ",null,"CCJ"]
["DMM-CAI-DMM",null,"CAI"]
["RUH-CCJ",null,"CCJ"]
["DMM-CAI-DMM",null,"CAI"]
["RUH-CCJ",null,"CCJ"]
["RUH-CCJ",null,"CCJ"]
["RUH-DEL-BOM-RUH",null,"BOM"]
["RUH-BOM-IXE",null,{"$f":"GetFinal(A264)","v":"IXE"}]
["DMM-CAI-DMM",null,"CAI"]
["DMS-BAH-BOM-LKO-BOM-BAH-DMS",null,"BOM"]
["DMS-BAH-BOM-LKO-BOM-BAH-DMS-BOM-BAH",null,"BOM"]
["RUH-CMB-TRV",null,"TRV"]
["DMM-AUH-PEK-AUH-DMM",null,"PEK"]
["DMM-AUH-PEK-AUH-DMM",null,"PEK"]
["DMM-MCT-BOM",null,"BOM"]
["JED-AUH-LHR-AUH-JED",null,"LHR"]
["DMM-CAI-DMM",null,"CAI"]
["DMS-BAH-LHR-BAH-DMS",null,"LHR"]
["HAS-RUH-DMM-RUH-HAS",null,"DMM"]
["DMM-DOH-GOI-DOH-DMM",null,"GOI"]
["DMM-MCT-LKO",null,"LKO"]
["DMS-BAH-MAA",null,"MAA"]
["RUH-BOM-RUH",null,"BOM"]
["ISB-MCT-RUH-MCT-ISB",null,"RUH"]
["DMM-TRV",null,"TRV"]
["JED-HBE-JED",null,"HBE"]
["RUH-DEL-BOM-RUH",null,"BOM"]
["DMM-DOH-DAC-DOH-DMM",null,"DAC"]
["DMM-DOH-DAC-DOH-DMM",null,"DAC"]
["DMM-DOH-DAC-DOH-DMM",null,"DAC"]
["RUH-CCJ",null,"CCJ"]
["RUH-KWI-BOM",null,"BOM"]
["DMM-SHJ-TRV-SHJ-DMM",null,"TRV"]
["DMM-BAH-HKG-CEB",null,"CEB"]
["DMM-KWI-BOM",null,"BOM"]
["BOM-DMM",null,"DMM"]
["DMM-BOM-DMM",null,"BOM"]
["DMM-MCT-KTM-MCT-DMM",null,"KTM"]
["DMM-AUH-PEK-AUH-DMM",null,"PEK"]
["RUH-DEL-LKO",null,"LKO"]
["RUH-DEL-LKO-DEL-RUH",null,"LKO"]
["RUH-TRV-BOM-RUH",null,"BOM"]
["DMM-CMB-TRZ-CMB-DMM",null,"TRZ"]
["DMM-DXB-CCJ",null,"CCJ"]
["DMM-DXB-CCJ",null,"CCJ"]
["DMM-TIF-RUH-DMM",null,"RUH"]
["DMM-DXB-CMB-DXB-DMM",null,"CMB"]
["DMM-CAI-DMM",null,"CAI"]
["DMM-BOM-COK-BOM-DMM",null,"COK"]
["DMM-RUH-DMM",null,"RUH"]
["DMM-MCT-MAA-MAT-DMM",null,"MAA"]
["DMM-DOH-MNL-DOH-BAH-DMS",null,"DMS"]
["DMM-DOH-MNL-DOH-DMM",null,"MNL"]
["RUH-BOM-MAA-BOM-RUH",null,"MAA"]
["DMM-CMB-MAA-CMB-JED",null,"JED"]
["DMS-BAH-MNL-BAH-DMS",null,"MNL"]
["JED-AUH-MAA-AUH-JED",null,"MAA"]
["DMM-AUH-MAA-AUH-JED",null,"JED"]
["DMM-JED-DMM",null,"JED"]
["DMM-JED-DMM",null,"JED"]
["DMM-JED-DMM",null,"JED"]
["DMM-JED-DMM",null,"JED"]
["DMM-JED-DMM",null,"JED"]
["DMM-JED-DMM",null,"JED"]
["DMM-JED-DMM",null,"JED"]
["RUH-MCT-COK",null,"COK"]
["RUH-CMB-TRZ-CMB-RUH",null,"TRZ"]
["RUH-CMB-TRZ-CMB-RUH",null,"TRZ"]
["RUH-JED-RUH",null,"JED"]
["RUH-BEY-RUH",null,"BEY"]
["DMM-CAI-DMM",null,"CAI"]
["DMM-CAI-DMM",null,{"$f":"GetFinal(A328)","v":"CAI"}]
["DMM-TRV",null,"TRV"]
["CAI-BAH-DMS",null,"DMS"]
["DMM-TRV-DMM",null,"TRV"]
["DMS-BAH-MAA-BAH-DMS",null,"MAA"]
["DMM-CCJ-DMM",null,"CCJ"]
["DXB-BAH",null,"BAH"]
["RUH-EAM",null,"EAM"]
["DMM-JED",null,"JED"]
["DMM-TRV",null,"TRV"]
["DMM-CAI",null,"CAI"]
["DMM-DOH-KTM",null,"KTM"]
["DMS-BAH-DXB",null,"DXB"]
["DMM-JED-DMM",null,"JED"]
["DMM-JED-DMM",null,"JED"]
["DMM-CAI",null,"CAI"]
["ISB-DOH-MED-DOH-ISB",null,"MED"]
["RUH-DXB-DAC-DXB-RUH",null,"DAC"]
["RUH-EAM",null,"EAM"]
["BAH-SHJ",null,"SHJ"]
["RUH-HMB",null,"HMB"]
["DMM-BAH-MNL-BAH-DMM",null,"MNL"]
["DMM-BAH-MNL-BAH-DMM",null,"MNL"]
["DMM-BAH-MNL-BAH-DMM",null,"MNL"]
["RUH-CCJ-RUH",null,"CCJ"]
["JED-DMM",null,"DMM"]
["RUH-BOM-DEL-BOM-RUH",null,"DEL"]
["RUH-KTM-RUH",null,"KTM"]
["DMM-TRV",null,"TRV"]
["RUH-CCJ",null,"CCJ"]
["DMM-BOM-BLR-BOM-DMM",null,"BLR"]
["JED-RUH",null,"RUH"]
["RUH-CCJ",null,"CCJ"]
["RUH-CCJ",null,"CCJ"]
["DMM-CCJ-DMM",null,"CCJ"]
["RUH-MED-RUH",null,"MED"]
["RUH-MED-RUH",null,"MED"]
["BAH-DXB-MAA-DXB-BAH",null,"MAA"]
["BAH-DXB-MAA-DXB-BAH",null,"MAA"]
["DMS-BAH-MNL-BAH-DMS",null,"MNL"]
["KWI-RUH",null,"RUH"]
["HYD-DMM",null,"DMM"]
["RUH-DAC-RUH",null,"DAC"]
["DMM-DXB-DAC-DXB-DMM",null,"DAC"]
["RUH-BOM-HYD",null,"HYD"]
["DMS-BAH-MNL-BAH-DMS",null,"MNL"]
["DMM-COK-DMM",null,"COK"]
["DMM-DOH-HKG-DOH-DMM",null,"HKG"]
["HKG-TPE-HKG",null,"TPE"]
["DMM-CCJ-DMM",null,"CCJ"]
["RUH-DEL-RUH",null,"DEL"]
["RUH-CAI-RUH",null,"CAI"]
["RUH-CAI-RUH",null,"CAI"]
["RUH-CAI-RUH",null,"CAI"]
["DMM-GIZ-DMM",null,"GIZ"]
["RUH-CMB-TRZ",null,"TRZ"]
["MNL-CGY-MNL",null,"CGY"]
["DMM-BAH-DAC-BAH-DMM",null,"DAC"]
["DMM-TRV",null,"TRV"]
["DMM-BAH-MAA-BAH-DMM",null,"MAA"]
["MAA-IXM-MAA",null,"IXM"]
["RUH-JED",null,"JED"]
["JED-BAH",null,"BAH"]
["JED-DMM",null,"DMM"]
["DMM-COK-DMM",null,{"$f":"GetFinal(A392)","v":"COK"}]
["DMM-CCJ",null,"CCJ"]
["DMM-MCT-BLR",null,"BLR"]
["DMM-CCJ-DMM",null,"CCJ"]
["DMM-COK",null,"COK"]
["DMS-BAH-IST-BAH-DMS",null,"IST"]
["DMS-BAH-IST-BAH-DMS",null,"IST"]
["DMS-BAH-KWI-BAH-DMS",null,"KWI"]
["DMS-BAH-KWI-BAH-DMS",null,"KWI"]
["DMM-CAI-DMM",null,"CAI"]
["DMM-CAI-DMM",null,"CAI"]
["DMM-CAI-DMM",null,"CAI"]
["RUH-BAH-DEL",null,"DEL"]
["RUH-TRV",null,"TRV"]
["RUH-CCJ-RUH",null,"CCJ"]
["RUH-DXB-TRV",null,"TRV"]
["RUH-KWI-ISB-KWI-RUH",null,"ISB"]

{"sheet":"Sheet2","index":1,"n_rows":0,"n_cols":0,"rows_kept":0,"cut":false,"hidden":false,"merged":[]}

{"sheet":"Sheet3","index":2,"n_rows":0,"n_cols":0,"rows_kept":0,"cut":false,"hidden":false,"merged":[]}